Cogmind - Beta 13 @@@ ROGUE MODE // 2024.04.09 @ 19:55:10 Player: Photon Result: Self-destructed Performance ------------- Evolutions (1) 500 Regions Visited (2) 400 Robots Destroyed (27) 135 Value Destroyed (554) 554 Prototype IDs (2) 40 Alien Tech Used (0) 0 Bonus (0) 0 TOTAL SCORE: 1629 Bonus ------- None Cogmind --------- Core Integrity 194/400 Matter 290/300 Energy 125/125 System Corruption 0% Temperature Cool (6) Movement Core (150) Ox2 Location -9/Materials Parts ------- > --- POWER (1) -------- Light Ion Engine > --- PROPULSION (2) --- (None) > --- UTILITY (2) ------ Small Storage Unit > --- WEAPON (4) ------- Small Laser > --- INVENTORY (8) ---- Medium Matter Pod (100) ECM Suite Tractor Beam Mining Laser Welding Torch Peak State ------------ > --- POWER ------------ Ion Engine > --- PROPULSION ------- Light Treads Light Treads > --- UTILITY ---------- Small Storage Unit Tractor Beam > --- WEAPON ----------- Medium Laser Particle Gun > --- INVENTORY -------- ECM Suite Small Laser [Rating: 8] Favorites ----------- Power Ion Engine Engine Ion Engine Propulsion Light Treads Treads Light Treads Leg Aluminum Leg Utility Small Storage Unit Device Structural Scanner Storage Small Storage Unit Weapon Light Cannon Energy Gun Particle Gun Ballistic Gun Assault Rifle Ballistic Cannon Light Cannon Special Weapon Mining Laser Build | -11 -10 -9 ------- Run | Yrd Mat Mat Slots Evolved 2 | . . 2 Power . | . . . Propulsion . | . . . Utility . | . . . Weapon 2 | . . 2 Parts Attached 18 | 7 8 3 Power 3 | 1 1 1 Engine 3 | 1 1 1 Core . | . . . Reactor . | . . . Propulsion 4 | 2 2 . Treads 2 | 2 . . Leg 2 | . 2 . Wheel . | . . . Hover . | . . . Flight . | . . . Utility 3 | 2 1 . Device 2 | 1 1 . Storage 1 | 1 . . Processor . | . . . Hackware . | . . . Protection . | . . . Artifact . | . . . Weapon 8 | 2 4 2 Energy Gun 3 | 1 1 1 Energy Cannon . | . . . Ballistic Gun 2 | 1 . 1 Ballistic Cannon 1 | . 1 . Launcher . | . . . Special Weapon 2 | . 2 . Impact Weapon . | . . . Slashing Weapon . | . . . Piercing Weapon . | . . . Special Melee Weapon . | . . . Unidentified Prototypes . | . . . Parts Lost 11 | . 5 6 Power 2 | . 1 1 Propulsion 4 | . 2 2 Utility 1 | . . 1 Weapon 4 | . 2 2 Highest Loss Streak 6 | . 2 6 To Critical Strikes . | . . . Average Slot Usage (%) 91 | . 94 60 Engine 13 | . 13 11 Treads 15 | . 17 . Leg 10 | . 9 15 Device 13 | . 13 7 Storage 13 | . 14 11 Energy Gun 11 | . 11 9 Ballistic Gun 3 | . 3 1 Ballistic Cannon 8 | . 8 4 Naked Turns . | . . . Heaviest Build 17 | 15 17 15 Greatest Support 40 | 40 40 20 Greatest Overweight (x) 5 | . 5 2 Average Overweight (x) . | . . . Largest Inventory Capacity 8 | 8 8 8 Average Capacity 7 | 6 8 8 Most Carried 7 | 1 7 6 Average Carried 4 | . 5 5 Final Capacity 8 | 8 8 8 Final Carried 6 | 1 6 5 Class Distribution -------------------- 100% | Mutant Dominant Class ---------------- Mutant | -10/Materials Mutant | -9/Materials Resources | -11 -10 -9 ----------- Run | Yrd Mat Mat Matter Collected 733 | 260 473 . Remotely 218 | 80 138 . Salvage Created 758 | 68 656 34 Parts 55 | 3 47 5 Haulers Intercepted 2 | . 2 . Recyclers Shooed . | . . . Parts Field Recycled . | . . . Retrieved Matter . | . . . Parts Self-Destructed . | . . . Prevented . | . . . Kills | -11 -10 -9 ------- Run | Yrd Mat Mat Combat Hostiles Destroyed 21 | . 18 3 Guns 15 | . 13 2 Cannons 5 | . 5 . AOE 1 | . . 1 Classes Destroyed 6 | 1 5 . Worker 1 | . 1 . Hauler 2 | . 2 . Recycler 1 | 1 . . Watcher 2 | . 2 . Swarmer 9 | . 6 3 Grunt 12 | . 12 . Best Kill Streak 5 | 1 5 3 Combat Bots Only 5 | . 5 3 Max Kills in Single Turn 1 | 1 1 1 Gunslinging . | . . . Exploded 1 | . . 1 Melee . | . . . Uniques/NPCs Destroyed . | . . . Combat | -11 -10 -9 -------- Run | Yrd Mat Mat Hostile Shots Fired 189 | . 119 70 Missed 64 | . 37 27 Damage Taken 1510 | . 928 582 Core 380 | . 174 206 Absorbed by Shields . | . . . Core Remaining (%) 65 | 100 30 . Volleys Fired 95 | 4 78 13 Largest 2 | 2 2 2 Hottest 165 | 70 165 75 Shots Fired 154 | 8 129 17 Gun 100 | 8 76 16 Cannon 49 | . 48 1 Launcher . | . . . Special 5 | . 5 . Kinetic 74 | 4 66 4 Thermal 80 | 4 63 13 Explosive . | . . . Electromagnetic . | . . . Robot Hit Streak 11 | 3 11 6 Robot Miss Streak 8 | 2 8 5 Penetration Max . | . . . Secondary Targets 3 | . 2 1 Max Gunslinging Chain 1 | . 1 1 Shots Hit Robots 84 | 4 71 9 Core Hits 34 | 2 30 2 Critical Kills . | . . . Critical Parts Destroyed . | . . . Critical Strikes 6 | . 6 . Burn 3 | . 3 . Blast 3 | . 3 . Melee Attacks . | . . . Impact . | . . . Slashing . | . . . Piercing . | . . . Sneak Attacks . | . . . Combat Hostiles . | . . . Follow-up Attacks . | . . . Damage Inflicted 1319 | 50 1176 93 Guns 876 | 50 735 91 Cannons 436 | . 436 . Explosions . | . . . Melee . | . . . Ramming 7 | . 5 2 Kinetic 670 | 11 634 25 Thermal 642 | 39 537 66 Explosive . | . . . Electromagnetic . | . . . Impact . | . . . Slashing . | . . . Piercing . | . . . Highest Corruption . | . . . Average Corruption . | . . . Corruption Purged . | . . . Corruption Blocked . | . . . Overload Shots . | . . . Overflow Damage 5 | . 5 . Projectiles 5 | . 5 . Explosions . | . . . Melee . | . . . Knockbacks 5 | . 5 . Impact . | . . . Kinetic 5 | . 5 . Secondary . | . . . Self-Inflicted Damage . | . . . Shots . | . . . Rammed 1 | . 1 . Targets Rammed 3 | . 2 1 Kicked 2 | . 1 1 Crushed . | . . . Highest Temperature 390 | 36 390 28 Average Temperature 91 | 19 99 8 Received Heat Transfer 501 | . 468 33 Effects 1 | . 1 . Matter Decay 1 | . 1 . Siege Activations . | . . . Robots Corrupted . | . . . Combat Hostiles . | . . . Parts Fried . | . . . Impact Corruptions . | . . . Robots Melted . | . . . Combat Hostiles . | . . . Parts Melted 3 | . 3 . Heat Transferred 1889 | 111 1628 150 Parts Sabotaged . | . . . Parts Stolen . | . . . Parts Stripped . | . . . Power Chain Reactions . | . . . Alert | -11 -10 -9 ------- Run | Yrd Mat Mat Peak Influence 226 | 5 226 108 Initial 53 | . 3 53 Average 104 | 3 116 71 Maximum Alert Level 1 | . 1 . Low Security (%) 86 | 100 84 100 Level 1 13 | . 15 . Level 2 . | . . . Level 3 . | . . . Level 4 . | . . . Level 5 . | . . . High Security . | . . . Max Security . | . . . Squads Dispatched 4 | . 4 . Investigation 3 | . 3 . Extermination . | . . . Reinforcement 1 | . 1 . Assault . | . . . Garrison . | . . . Intercept . | . . . Searches Triggered . | . . . Construction Impeded . | . . . Haulers Reinforced . | . . . Active Scanning Responses . | . . . Cargo Convoy Interrupts . | . . . Stealth | -11 -10 -9 --------- Run | Yrd Mat Mat Distress Signals 4 | . 2 2 Communications Jammed . | . . . Distress Signals . | . . . Times Spotted 39 | . 29 10 Peak Tracking Total 7 | . 4 7 Tactical Retreats 1 | . . 1 Traps | -11 -10 -9 ------- Run | Yrd Mat Mat Traps Triggered 2 | . 2 . Indirectly . | . . . Trap Hack Attempts . | . . . Triggered . | . . . Disarmed . | . . . Reprogrammed . | . . . Reused . | . . . Traps Extracted . | . . . Installed . | . . . Triggered . | . . . Machines | -11 -10 -9 ---------- Run | Yrd Mat Mat Machines Disabled . | . . . Max in Single Turn . | . . . Machines Repaired . | . . . Machines Dismantled . | . . . Machines Sabotaged . | . . . Overloaded Fab Kills . | . . . Hacking | -11 -10 -9 --------- Run | Yrd Mat Mat Machines Accessed 5 | . 5 . Terminals 4 | . 4 . Fabricators . | . . . Repair Stations . | . . . Recycling Units 1 | . 1 . Scanalyzers . | . . . Garrison Access . | . . . Total Hacks 11 | . 11 . Successful 6 | . 6 . Failed 5 | . 5 . Catastrophic 3 | . 3 . Database Lockouts . | . . . Manual 1 | . 1 . Terminals 10 | . 10 . Fabricators . | . . . Repair Stations . | . . . Recycling Units 1 | . 1 . Scanalyzers . | . . . Garrison Access . | . . . Terminal Hacks 5 | . 5 . Prototype ID Bank 1 | . 1 . Emergency Access Points 1 | . 1 . Alert Level 3 | . 3 . Fabricator Hacks . | . . . Repair Station Hacks . | . . . Recycling Unit Hacks 1 | . 1 . Report Inventory 1 | . 1 . Scanalyzer . | . . . Garrison Access Hacks . | . . . Unauthorized Hacks . | . . . Terminals . | . . . Fabricators . | . . . Repair Stations . | . . . Recycling Units . | . . . Scanalyzers . | . . . Garrison Access . | . . . Data Cores Recovered . | . . . Used . | . . . Hacking Detections 3 | . 3 . Full Trace Events 1 | . 1 . Feedback Events . | . . . Feedback Blocked . | . . . Robot Schematics Acquired . | . . . Robots Built . | . . . Authchips . | . . . Time . | . . . Total Robot Build Rating . | . . . Part Schematics Acquired . | . . . Parts Built . | . . . Authchips . | . . . Time . | . . . Total Part Build Rating . | . . . Parts Repaired . | . . . Time . | . . . Parts Recycled . | . . . Recycled Matter . | . . . Retrieved Matter . | . . . Retrieved Components . | . . . Parts Scanalyzed . | . . . Part Schematics Acquired . | . . . Parts Damaged . | . . . Bothacking | -11 -10 -9 ------------ Run | Yrd Mat Mat Used RIF Installer . | . . . Robots Hacked . | . . . Non-combat . | . . . Combat . | . . . Robot Hacks Applied . | . . . Relay Couplers Released . | . . . Fabnet Peak Effective % . | . . . Robots Rewired . | . . . Allies Hacked . | . . . Hacks Repelled . | . . . Allies | -11 -10 -9 -------- Run | Yrd Mat Mat Total Allies . | . . . Largest Group . | . . . Highest-Rated Group . | . . . Highest-Rated Ally . | . . . Total Orders . | . . . Ally Attacks . | . . . Total Damage . | . . . Kills . | . . . Allies Corrupted . | . . . Allies Melted . | . . . Intel | -11 -10 -9 ------- Run | Yrd Mat Mat Robot Analysis Total . | . . . Derelict Logs Recovered . | . . . Drone Launches . | . . . Drone Recoveries . | . . . Exploration | -11 -10 -9 ------------- Run | Yrd Mat Mat Turns Passed 1215 | 94 1024 97 Spaces Moved 643 | 48 545 50 Core 17 | 5 4 8 Treads 333 | 43 290 . Legs 293 | . 251 42 Wheels . | . . . Hover . | . . . Flight . | . . . Fastest Speed 50 | 50 120 100 Average Speed 142 | 148 143 122 Slowest Speed 300 | 160 300 190 Overloaded Moves . | . . . Propulsion Burnouts . | . . . Robots Hopped . | . . . Cave-ins Triggered . | . . . Exploration Rate (%) 31 | 4 80 9 Regions Visited 2 Branch Regions . Pre-discovered Areas . | . . . Known Exits Taken . | . . . Unknown Exits Taken 2 | 1 1 . Scrap Searched . | . . . Spaces Dug 3 | . 3 . Terrain Destroyed 4 | . 4 . Melee . | . . . Projectile 4 | . 4 . AOE . | . . . Terrain Rammed . | . . . Walls Destroyed . | . . . Machines Disabled . | . . . Actions | -11 -10 -9 --------- Run | Yrd Mat Mat Total 774 | 59 647 68 Wait 6 | . 6 . Move 641 | 47 544 50 Hop . | . . . Pick Up 8 | 1 6 1 Fast Attach 13 | 7 5 1 Attach 2 | . . 2 Detach 1 | . 1 . Swap 3 | . 3 . Drop 2 | . 2 . Fire 95 | 4 78 13 Melee . | . . . Ram . | . . . Kick 2 | . 1 1 Crush 1 | . 1 . Escape Stasis . | . . . Rewire . | . . . Trap . | . . . Miscellaneous . | . . . Route ------- -11/Scrapyard -10/Materials (discovered 4 exits: [*Mat x2] / [*Min x2]) -9/Materials History --------- Turn | Location | Event 10 | -11/Scrapyard | Discovered new exit (range 15) 95 | -11/Scrapyard | Entered Materials 305 | -10/Materials | Build established: Mutant 328 | -10/Materials | Discovered new exit (range 15) 653 | -10/Materials | Discovered new exit (range 5) 674 | -10/Materials | Core integrity fell below 50% 859 | -10/Materials | Discovered new exit (range 14) 911 | -10/Materials | Discovered new exit (range 16) 1119 | -10/Materials | Entered another Materials area 1119 | -9/Materials | Evolved 2 slots: Weapon x2 1213 | -9/Materials | Core integrity fell below 50% 1216 | -9/Materials | Self-destructed Last Messages --------------- 01197_ U-05 Engineer lays Concrete. 01198_ U-05 Engineer builds a Wall. 01198_ U-05 Engineer lays Concrete. 01198_ Acquired Lgt. Ion Engine. 01198_ K-01 Serf collects debris. 01199_ U-05 Engineer lays Concrete. 01199_ U-05 Engineer builds a Wall. 01201_ K-01 Serf collects debris. 01202_ U-05 Engineer builds a Door. 01204_ K-01 Serf collects debris. 01205_ U-05 Engineer builds a Wall. 01205_ K-01 Serf collects debris. 01205_ U-05 Engineer builds a Wall. 01209_ K-01 Serf collects debris. 01209_ U-05 Engineer builds a Wall. 01209_ U-05 Engineer lays Concrete. 01210_ U-05 Engineer builds a Wall. 01210_ U-05 Engineer lays Concrete. 01214_ U-05 Engineer builds a Wall. 01214_ U-05 Engineer lays Concrete. Map ----- +----------------------------------------------------+ | ?????????????????????????????????????????????????? | | ?????????????????????????????????????????????????? | | ?????????????????????????????????????????????????? | | ?????????????????????????????????????????????????? | | ?????????????????????????????????????????????????? | | ?????????????????????????????????????????????????? | | ?????????????????????????????????????????????????? | | ?????????????????????????????????????????????????? | | ?????????????????????????????????????????????????? | | ?????????????????????????????????????????????????? | | ?????????????????????????????????????????????????? | | ?????????????????????????????????????????????????? | | ?????????????????????????????????????????????????? | | ?????????????????????????????????????????????????? | | ????????????????? # ???????????????????? | | ?????????????? ############+####?????????????????? | | ????????????? ??????????????????? | | ????????????? w ??????????????????? | | ???????????? r ???????????????????? | | ????????????# a gg #???????????????????? | | ????????????# #???????????????????? | | ????????????# g #############???????? | | ????????????# #############???????? | | ????????????# ##???????? | | ????????????# ##???????? | | ?????????? @u ##???????? | | ?????????? ### #### ###+#####???????? | | ?????????????????????### # ##???????? | | ??????????????????????# """ ##???????? | | ??????????????????????# """ ##???????? | | ??????????????????????## """ ##???????? | | ??????????????????????# ##???????? | | ?????????????## ??????# ##???????? | | ?????????????## ??????## ########???????? | | ?????????????## ?????# ########???????? | | ?????????????## ### ####????????????? | | ?????????????## #####/## ####????????????? | | ?????????????## # """ ##????????????? | | ?????????????## # """ ##????????????? | | ?????????????##### # """ # ????????????? | | ?????????????######/##### / # ????????????? | | ???????????????? ### # # ????????????? | | ???????????????????????## # # ????????????? | | ???????????????????????## ######## ????????????? | | ???????????????????????## ######## ????????????? | | ???????????????????????## ##???????????????????? | | ???????????????????????## ##???????????????????? | | ???????????????????????## ##???????????????????? | | ???????????????????????## ##???????????????????? | | ???????????????????????## ???????????????????? | +----------------------------------------------------+ Best States ------------- Heat Dissipation 28 Energy Generation 10 Energy Capacity 250 Matter Stores 300 Matter Capacity 300 Sight Range 16 Terrain Scan Density 10 Evasion (%) 55 Recoil Reduction 2 Item Schematics ----------------- None Robot Schematics ------------------ None Fabricated ------------ Nothing Alien Tech Used ----------------- None Achievements -------------- Use The Force Challenges ------------ None Game ------ Seed AntimissileSurveybotLog Manual? 0 Play Time 00:26:15 Cumulative 19.6 hours Start 2024.04.04 @ 14:22:37 End 2024.04.09 @ 19:55:10 Sessions 3 Manual Loads 0 Difficulty Rogue Special Mode None Game No. 6 Rogue 6 Adventurer 0 Explorer 0 Win Type - Total 0 Types 0/0/0/0/0/0/0/0/0 Lore% 6 Gallery% 14 Achievement% 14 Wizard Run 0 Options --------- Layout 0 ASCII 1 Keyboard 0 Movement Mouse Keybinds 0 Fullscreen 2 Font 18/Terminus Map View 76x50 Zoom Use 0% Tactical HUD 1 Map Filters NONE Filters SHIFT_HUE(20) Steam 0 RUN: 3e628e2a-ca65-4944-81d6-c50557457c24